bitfinex/quotes_ETHUSD_20240607
["timestamp","ask_amount","ask_price","bid_price","bid_amount"]
[1717738204607,1.57147923,3821.5,3821.3,0.90947255]
[1717738204808,0.784,3821.4,3821.2,2.498]
[1717738205059,0.784,3821.4,3821.3,1.36416909]
[1717738205205,0.784,3821.4,3821.3,2.27363904]
[1717738206448,0.784,3821.4,3821.3,0.90946995]
[1717738207152,0.784,3821.4,3821.1,0.546667]
[1717738207301,4.18831923,3821.5,3821.2,2.27368716]
[1717738207648,0.784,3821.3,3820.9,0.546667]
[1717738207834,0.784,3821.1,3821.0,2.27374598]
[1717738208407,3.40104,3821.1,3821.0,2.27374598]
[1717738208839,4.97251923,3821.1,3820.7,0.546667]
[1717738209036,3.0563,3820.9,3820.8,2.27401273]
[1717738210072,2.61704,3821.1,3820.8,2.27401273]
[1717738210230,0.784,3820.9,3820.6,0.546667]
[1717738210433,2.61704,3821.1,3820.7,2.27398666]
[1717738210630,2.61704,3821.1,3820.8,2.27398666]
[1717738210834,0.784,3820.9,3820.8,2.27398666]
[1717738211685,2.61704,3821.1,3820.8,2.27398666]
[1717738211885,0.784,3820.9,3820.7,0.546667]
[1717738212096,0.784,3820.9,3820.8,2.27390342]
[1717738216294,0.784,3820.9,3820.8,0.90956137]
[1717738216665,0.784,3820.9,3820.5,0.546667]
[1717738216959,2.61719,3820.9,3820.6,2.27394273]
[1717738217271,2.89152327,3820.8,3820.7,0.90957709]
[1717738217457,3.2521,3820.8,3820.6,0.06718166]
[1717738217786,1.57170359,3820.7,3820.0,0.546667]
[1717738217991,1.57170359,3820.7,3820.1,2.27429546]
[1717738217992,0.784,3820.2,3820.1,2.27429546]
[1717738218341,0.784,3820.2,3820.1,2.82096246]
[1717738219299,0.784,3820.2,3820.1,0.90971818]
[1717738219604,0.784,3820.2,3819.6,0.546667]
[1717738219750,2.6177,3820.2,3819.7,2.27442986]
[1717738219950,0.784,3819.8,3819.5,0.546667]
[1717738220159,0.784,3819.6,3819.5,0.546667]
[1717738220449,0.784,3819.6,3819.5,2.27455941]
[1717738220849,0.784,3819.6,3819.2,0.546667]
[1717738221151,2.61789,3819.9,3819.3,2.65542097]
[1717738221352,0.784,3819.4,3819.3,2.274765]
[1717738221583,0.784,3819.4,3819.1,2.4398]
[1717738221894,0.784,3819.2,3819.1,2.4398]
[1717738222184,0.784,3819.2,3818.8,2.4398]
[1717738222347,0.784,3819.0,3818.9,0.90997009]
[1717738222548,0.784,3819.0,3818.8,0.34389127]
[1717738224077,0.784,3819.0,3818.5,2.986467]
[1717738224287,0.784,3818.7,3818.6,0.90999318]
[1717738224476,0.784,3818.7,3818.2,0.546676]
[1717738224678,0.784,3818.4,3818.3,2.27512754]
[1717738225191,0.784,3818.4,3818.2,9e-06]
[1717738225391,0.784,3818.4,3818.2,0.91008986]
[1717738225599,0.784,3818.4,3818.2,9e-06]
[1717738225958,0.784,3818.4,3818.2,0.91008805]
[1717738226159,0.784,3818.4,3818.2,1.28236356]
[1717738226366,2.61836,3819.2,3818.2,1.28236356]
[1717738226599,0.784,3818.5,3818.2,0.37228451]
[1717738229813,0.784,3818.6,3818.2,0.37228451]
[1717738230281,7.37,3819.1,3818.3,0.26382845]
[1717738230481,0.784,3818.7,3818.3,0.26382845]
[1717738231020,0.784,3818.7,3818.4,0.06802369]
[1717738234741,0.784,3818.5,3818.4,0.06802369]
[1717738235814,0.784,3818.5,3818.4,0.3278098]
[1717738237623,0.784,3818.7,3818.4,0.3278098]
[1717738241550,0.33819538,3818.7,3818.4,0.3278098]
[1717738244853,0.784,3818.5,3818.4,0.06802369]
[1717738245067,0.34355913,3818.5,3818.2,9e-06]
[1717738245259,0.34355913,3818.5,3818.4,0.06838885]
[1717738245471,0.34355913,3818.5,3818.2,9e-06]
[1717738245671,0.784,3818.3,3818.2,9e-06]
[1717738247546,4.75684544,3819.0,3818.2,9e-06]
[1717738247747,0.784,3818.5,3818.2,0.33031475]
[1717738247947,0.784,3818.5,3818.2,0.2619259]
[1717738248147,0.784,3818.5,3818.3,0.06852143]
[1717738248471,0.784,3818.5,3818.2,0.2619259]
[1717738248672,0.784,3818.5,3818.4,0.06852143]
[1717738248886,0.784,3818.5,3818.2,0.2619259]
[1717738249263,1.57231028,3818.9,3818.3,2.52982143]
[1717738249468,0.784,3818.6,3818.4,0.27917473]
[1717738250204,0.784,3818.6,3818.5,0.06852143]
[1717738251000,1.57231028,3818.8,3818.5,0.06852143]
[1717738251514,0.784,3818.6,3818.2,0.2619259]
[1717738251694,0.784,3818.6,3818.3,0.47928989]
[1717738255879,1.57230739,3818.8,3818.3,0.47928989]
[1717738255880,1.57230739,3818.8,3818.4,2.4103]
[1717738256110,2.35630739,3818.8,3818.4,2.4103]
[1717738256407,0.784,3818.8,3818.4,2.4103]
[1717738256707,0.784,3818.8,3818.5,0.36981828]
[1717738257415,4.7566509,3819.0,3818.5,0.36981828]
[1717738257718,0.784,3818.8,3818.5,0.36981828]
[1717738258217,0.784,3818.8,3818.6,0.90996993]
[1717738258715,0.784,3818.8,3818.5,0.36981828]
[1717738258916,0.784,3818.8,3818.6,0.38060752]
[1717738259612,7.37,3819.1,3818.7,0.90996521]
[1717738259815,8.154,3819.1,3818.8,0.90992305]
[1717738259987,8.154,3819.1,3818.9,0.90992305]
[1717738260195,8.154,3819.1,3818.6,0.92727452]
[1717738260196,8.154,3819.1,3819.0,0.909909]
[1717738261276,7.37,3819.1,3819.0,2.27478007]
[1717738262314,7.37,3819.1,3819.0,2.82144707]
[1717738262521,7.37,3819.1,3819.0,5.26874707]
[1717738262727,7.37,3819.1,3819.0,8.18957246]
[1717738263041,7.37,3819.1,3819.0,7.36947974]
[1717738263386,7.37,3819.1,3819.0,8.73365492]
[1717738264244,8.94213481,3820.1,3819.2,2.61834]
[1717738264419,0.784,3820.0,3819.7,0.54688895]
[1717738264742,0.784,3820.0,3819.8,2.88987821]
[1717738264933,0.784,3820.0,3819.9,2.82166902]
[1717738265135,8.154,3820.1,3819.9,2.27478007]
[1717738265332,8.154,3820.1,3820.0,2.82158314]
[1717738265333,7.37,3820.1,3820.0,2.82158314]
[1717738265530,0.784,3820.2,3820.0,2.88977172]
[1717738265848,0.784,3820.4,3820.1,2.27478007]
[1717738266044,0.784,3820.4,3820.2,2.27478007]
[1717738266247,0.784,3820.4,3819.9,0.82033342]
[1717738266248,0.784,3820.4,3820.3,0.97809758]
[1717738266414,0.784,3820.4,3820.3,2.34258442]
[1717738266948,0.784,3820.4,3820.3,0.97809758]
[1717738267249,0.784,3820.4,3820.3,0.06818858]
[1717738267446,0.784,3820.4,3820.3,0.90966169]
[1717738267657,0.784,3820.4,3820.3,0.97785027]
[1717738267856,0.784,3820.4,3820.3,2.34235075]
[1717738268420,0.784,3820.4,3820.3,0.97785027]
[1717738269147,0.784,3820.4,3820.3,0.06818858]
[1717738269464,0.784,3820.4,3820.1,1.36446456]
[1717738269641,12.49,3820.7,3820.2,0.97736929]
[1717738269963,12.49,3820.7,3820.3,0.90961591]
[1717738270126,0.784,3820.4,3820.2,0.06772625]
[1717738270326,0.784,3820.4,3820.3,0.90959585]
[1717738270581,0.784,3820.4,3820.3,0.06772625]
[1717738270919,0.784,3820.4,3820.1,1.3644519]
[1717738271124,0.784,3820.4,3820.3,0.06772625]
[1717738271372,0.784,3820.4,3820.0,1.36445726]
[1717738271596,0.784,3820.4,3820.3,0.06772625]
[1717738271776,0.784,3820.4,3819.9,0.92741059]
[1717738272098,0.784,3820.1,3820.0,2.27407926]
[1717738272259,0.34893323,3820.1,3820.0,2.34180551]
[1717738272442,0.34893323,3820.1,3820.0,0.97735795]
[1717738272873,0.34893323,3820.1,3820.0,2.34181743]
[1717738273244,0.34893323,3820.1,3820.0,0.97735795]
[1717738273958,0.34893323,3820.1,3820.0,0.06772625]
[1717738276465,0.34893323,3820.1,3819.4,1.36465887]
[1717738276693,0.784,3819.7,3819.5,0.06760847]
[1717738276897,0.784,3819.7,3819.5,0.72089657]
[1717738277492,0.784,3819.9,3819.6,0.90974317]
[1717738277903,0.784,3819.9,3819.4,1.36460924]
[1717738278189,0.784,3819.9,3819.7,0.06760847]
[1717738278423,0.784,3819.9,3819.4,1.3646352]
[1717738278559,0.784,3819.9,3819.8,0.06760847]
[1717738278752,0.784,3819.9,3819.4,0.82872716]
[1717738278997,0.784,3819.9,3819.8,0.06760847]
[1717738279200,0.784,3819.9,3819.4,0.82872716]
[1717738279401,0.784,3819.9,3819.8,0.06760847]
[1717738280123,0.784,3819.9,3819.4,0.82872716]
[1717738280322,0.784,3819.9,3819.8,0.06760847]
[1717738280520,0.784,3819.9,3819.3,2.61821]
[1717738280847,0.784,3819.9,3819.8,0.06760847]
[1717738281054,0.784,3819.9,3819.4,0.56230131]
[1717738281207,0.784,3819.9,3819.4,2.83674633]
[1717738281538,0.784,3819.9,3819.5,0.06769384]
[1717738282548,2.333,3820.2,3819.5,0.06769384]
[1717738282549,0.784,3819.7,3819.5,0.06769384]
[1717738282747,0.35468647,3819.7,3819.5,0.06769384]
[1717738284344,0.784,3819.9,3819.5,0.06769384]
[1717738284942,0.784,3819.9,3819.3,2.61821]
[1717738285252,0.784,3819.9,3819.4,1.47207481]
[1717738285420,0.784,3819.9,3819.4,0.62999515]
[1717738285931,0.784,3819.9,3819.4,1.99464674]
[1717738286135,2.333,3820.2,3819.5,0.90976772]
[1717738286136,0.784,3819.7,3819.5,0.90976772]
[1717738286334,0.784,3819.6,3819.4,0.06769384]
[1717738286763,0.784,3819.6,3818.9,5.42874307]
[1717738286919,2.4409,3819.7,3819.5,0.06771445]
[1717738287121,0.784,3819.6,3819.1,1.36478343]
[1717738287347,0.784,3819.4,3819.2,0.90985982]
[1717738287559,0.784,3819.4,3819.1,0.37902507]
[1717738287741,0.784,3819.4,3819.1,1.28888564]
[1717738288146,0.784,3819.4,3819.2,0.90986057]
[1717738288359,0.784,3819.4,3819.2,0.56259394]
[1717738288662,0.784,3819.4,3819.2,1.92735861]
[1717738288821,0.784,3819.4,3819.2,0.56259394]
[1717738289221,0.784,3819.4,3819.2,1.92735935]
[1717738289418,0.784,3819.4,3819.3,0.90983818]
[1717738291444,2.4409,3819.7,3819.3,0.90983818]
[1717738291650,0.784,3819.5,3819.2,0.56259394]
[1717738291859,0.784,3819.5,3819.3,0.90984347]
[1717738292051,0.784,3819.5,3819.2,1.92735914]
[1717738292257,0.784,3819.5,3819.3,0.90983864]
[1717738292560,0.784,3819.5,3819.2,0.56259394]
[1717738292747,0.784,3819.5,3819.4,0.06771445]
[1717738292954,0.784,3819.5,3819.2,0.56259394]
[1717738293149,0.784,3819.5,3819.4,0.06771445]
[1717738293459,0.784,3819.6,3819.2,0.56259394]
[1717738293662,0.784,3819.6,3819.3,2.2745708]
[1717738294010,0.784,3819.6,3819.4,0.90980407]
[1717738294189,0.784,3819.6,3819.3,0.06771445]
[1717738294326,0.784,3819.9,3819.5,3.35000065]
[1717738294522,0.784,3819.9,3819.5,2.4402]
[1717738295025,0.784,3819.9,3819.6,0.06785871]
[1717738296041,0.784,3819.9,3819.5,1.36467151]
[1717738296242,7.37,3820.0,3819.7,0.06785871]
[1717738296545,0.784,3819.8,3819.7,0.06785871]
[1717738297025,0.784,3819.8,3819.5,0.74254785]
[1717738297225,0.784,3819.8,3819.7,0.06785871]
[1717738297425,0.784,3819.8,3819.7,0.90977957]
[1717738297645,0.784,3819.8,3819.7,0.97763828]
[1717738298866,0.784,3819.8,3819.7,0.06785871]
[1717738299243,0.784,3819.8,3819.7,0.97765966]
[1717738301265,0.784,3819.8,3819.7,2.3423529]
[1717738301679,0.784,3819.8,3819.7,0.06785871]
[1717738302008,0.784,3819.8,3819.7,2.27449988]
[1717738302284,0.784,3819.8,3819.7,2.3423527]
[1717738305352,0.784,3819.8,3819.7,2.88915577]
[1717738308266,0.784,3819.8,3819.7,2.3423527]
[1717738308898,0.784,3819.8,3819.7,2.8895524]
[1717738309199,0.784,3819.8,3819.7,2.3423527]
[1717738309387,0.784,3819.8,3819.7,2.88955557]
[1717738314302,0.784,3819.8,3819.7,2.3423527]
[1717738317515,0.784,3819.8,3819.7,4.98227796]
[1717738318377,0.784,3819.8,3819.7,4.98226963]
[1717738321296,1.57187441,3819.9,3819.7,4.16193621]
[1717738321492,1.57187441,3819.9,3819.8,4.91574806]
[1717738321676,2.35587441,3819.9,3819.8,4.91574806]
[1717738321878,2.35587441,3819.9,3819.8,4.9834648]
[1717738322194,2.35587441,3819.9,3819.8,4.16180013]
[1717738323133,0.784,3819.9,3819.8,4.16180013]
[1717738323339,0.784,3819.9,3819.8,5.25557803]
[1717738326420,2.76604602,3819.9,3819.8,4.98361069]
[1717738327524,2.76604602,3819.9,3819.8,4.16180013]
[1717738328024,2.76604602,3819.9,3819.8,4.98366615]
[1717738328920,2.76604602,3819.9,3819.8,4.16180013]
[1717738329299,2.76604602,3819.9,3819.8,4.98376134]
[1717738329825,2.76604602,3819.9,3819.8,4.16180013]
[1717738330326,1.19417161,3819.9,3819.8,4.16180013]
[1717738330847,3.64827161,3819.9,3819.8,4.16180013]
[1717738330983,5.22014602,3819.9,3819.8,4.98379358]
[1717738331183,3.64827161,3819.9,3819.8,4.98379358]
[1717738331518,4.2141464,3819.9,3819.8,2.89032615]
[1717738332195,3.64827161,3819.9,3819.8,2.89032615]
[1717738332390,3.64827161,3819.9,3819.8,2.34220829]
[1717738332712,3.64827161,3819.9,3819.8,2.89032615]
[1717738333213,3.64827161,3819.9,3819.8,2.34220829]
[1717738334190,3.64827161,3819.9,3819.8,0.97751336]
[1717738334390,3.64827161,3819.9,3819.8,2.34239739]
[1717738334588,3.64827161,3819.9,3819.8,2.27468065]
[1717738334834,3.64827161,3819.9,3819.8,2.34248572]
[1717738335889,3.64827161,3819.9,3819.8,2.34258172]
[1717738338349,2.86427161,3819.9,3819.8,2.34258172]
[1717738338639,3.64827161,3819.9,3819.8,2.34258172]
[1717738347341,4.33601858,3819.9,3819.8,0.97771573]
[1717738347543,4.33601858,3819.9,3819.8,0.06780507]
[1717738347544,7.88601858,3819.9,3819.8,0.06780507]
[1717738347716,7.88601858,3819.9,3819.3,0.54811786]
[1717738347717,2.61808,3819.6,3819.3,0.54811786]
[1717738347924,0.784,3819.5,3819.4,0.97555873]
[1717738348155,0.784,3819.5,3819.4,0.0655922]
[1717738348471,2.61822,3819.4,3819.0,0.54811786]
[1717738348610,0.784,3819.2,3819.1,2.27504838]
[1717738348813,0.784,3819.2,3819.1,2.82316624]
[1717738349559,0.784,3819.2,3819.1,2.27504838]
[1717738350818,2.61822,3819.4,3819.1,2.27504838]
[1717738351020,0.784,3819.2,3819.0,0.54811786]
[1717738351219,0.784,3819.2,3819.1,2.27498237]
[1717738352769,3.1145,3819.2,3819.1,2.3407012]
[1717738352932,7.004722,3819.2,3819.1,0.06571883]
[1717738353256,2.61845,3819.1,3818.7,0.54811786]
[1717738353456,0.784,3818.9,3818.5,0.54811786]
[1717738353660,3.18443923,3819.1,3818.6,2.27535871]
[1717738353958,3.18443923,3819.1,3818.7,2.2753142]
[1717738354163,0.784,3818.8,3818.5,0.54811786]
[1717738354364,3.18443923,3819.1,3818.6,2.2752843]
[1717738354527,3.18443923,3819.1,3818.7,2.2752843]
[1717738354726,0.784,3818.8,3818.5,0.54811786]
[1717738355064,0.784,3818.8,3818.6,2.27528503]
[1717738355365,0.784,3818.8,3818.7,2.27528503]
[1717738355522,2.61845,3819.1,3818.7,2.27528503]
[1717738355846,2.61845,3819.1,3818.8,2.27528503]
[1717738356047,0.784,3818.8,3818.7,0.54811786]
[1717738356236,0.36494408,3818.8,3818.7,2.77034268]
[1717738356435,0.36494408,3818.8,3818.7,3.31745638]
[1717738358847,0.36494408,3818.8,3818.7,2.77034268]
[1717738359063,0.36494408,3818.8,3818.7,2.27506256]
[1717738359527,0.784,3818.8,3818.7,0.91002502]
[1717738359927,0.784,3818.8,3818.7,2.82218576]
[1717738360355,0.784,3818.8,3818.7,2.27507206]
[1717738361137,0.784,3818.8,3818.7,2.82218576]
[1717738361338,0.784,3818.8,3818.7,3.38078351]
[1717738363362,2.61845,3819.1,3818.7,3.38078351]
[1717738363662,0.784,3818.9,3818.8,2.82218576]
[1717738364362,0.784,3818.9,3818.8,3.25616466]
[1717738365825,0.56598825,3819.4,3818.8,3.25616466]
[1717738366072,0.784,3819.0,3818.9,4.76877206]
[1717738366434,0.784,3819.0,3818.9,5.31588576]
[1717738366763,3.0,3819.4,3818.9,5.31588576]
[1717738366925,3.0,3819.4,3819.0,2.27507206]
[1717738367122,3.0,3819.4,3819.1,0.91002502]
[1717738367363,0.784,3819.2,3818.9,3.75385929]
[1717738367660,3.0,3819.4,3819.0,2.33871931]
[1717738367841,0.784,3819.1,3819.0,0.06377033]
[1717738368041,0.784,3819.1,3819.0,2.33872065]
[1717738369170,0.784,3819.1,3819.0,3.03017799]
[1717738370470,0.784,3819.1,3819.0,2.33872065]
[1717738372240,2.6184,3819.2,3819.0,2.33872065]
[1717738372566,0.56598778,3819.3,3819.1,2.27497388]
[1717738372740,0.56598778,3819.4,3819.2,0.97376585]
[1717738372954,7.37,3819.5,3819.3,2.27496214]
[1717738373153,7.37,3819.5,3819.4,2.27488135]
[1717738373449,10.37,3819.5,3819.4,2.33865757]
[1717738373678,7.37,3819.5,3819.4,2.88577127]
[1717738373873,8.154,3819.5,3819.4,2.33865757]
[1717738374781,2.61781,3820.0,3819.4,2.80314126]
[1717738375079,2.61781,3820.0,3819.5,4.91624188]
[1717738375080,0.784,3819.7,3819.5,4.91624188]
[1717738375264,0.784,3819.7,3819.6,2.27458246]
[1717738375455,0.784,3819.7,3819.6,4.97967916]
[1717738375658,0.784,3819.7,3819.6,6.01468667]
[1717738375857,0.784,3819.7,3819.6,5.19269322]
[1717738376481,0.784,3819.7,3819.6,6.28647112]
[1717738376655,0.784,3819.7,3819.6,5.19269322]
[1717738376856,0.784,3819.7,3819.6,6.28647112]
[1717738377865,0.784,3819.7,3819.6,6.01308094]
[1717738379471,0.784,3819.7,3819.6,3.37306284]
[1717738380488,0.784,3819.7,3819.6,3.91995905]
[1717738380650,0.784,3819.7,3819.6,3.37306284]
[1717738381051,0.784,3819.7,3819.6,3.91995936]
[1717738382194,0.784,3819.7,3819.6,2.88495185]
[1717738382353,0.784,3819.7,3819.6,2.33805533]
[1717738385969,2.4711,3819.8,3819.6,2.33805533]
[1717738386166,2.4711,3819.8,3819.7,0.90983298]
[1717738386393,3.2551,3819.8,3819.7,0.97324106]
[1717738388382,0.784,3819.8,3819.7,0.97324106]
[1717738389477,0.784,3819.8,3819.7,2.33803483]
[1717738390205,1.371268,3819.8,3819.7,0.97324106]
[1717738390401,1.371268,3819.8,3819.7,0.06340808]
[1717738390578,1.371268,3819.8,3819.3,0.54691158]
[1717738390906,1.371268,3819.8,3819.2,0.82038772]
[1717738390907,0.784,3819.4,3819.2,0.82038772]
[1717738391067,0.784,3819.4,3819.3,2.82164304]
[1717738391264,0.784,3819.4,3819.3,2.27477538]
[1717738391873,0.784,3819.4,3819.3,2.82166419]
[1717738392299,0.784,3819.4,3819.3,2.27477538]
[1717738392974,0.784,3819.4,3819.3,2.82166203]
[1717738393313,0.784,3819.4,3819.3,2.27477538]
[1717738393673,0.784,3819.4,3819.3,2.82172642]
[1717738394108,0.784,3819.4,3819.3,0.54695104]
[1717738394270,0.784,3819.4,3819.3,2.82170862]
[1717738396187,0.37119894,3819.4,3819.3,2.82170862]
[1717738396388,0.784,3819.4,3819.3,2.82170862]
[1717738397616,0.784,3819.4,3819.3,2.8830091]
[1717738399404,0.784,3819.4,3819.3,2.88306013]
[1717738401287,0.784,3819.4,3819.3,2.33610909]
[1717738403481,0.784,3819.4,3819.3,2.33606405]
[1717738405926,0.784,3819.4,3819.3,2.88350866]
[1717738406129,0.784,3819.4,3819.3,2.33606405]
[1717738408479,0.784,3819.4,3819.3,0.97125054]
[1717738408658,0.784,3819.4,3819.3,2.33617564]
[1717738413701,0.784,3819.4,3819.3,2.33620821]
[1717738414967,0.784,3819.4,3819.3,2.88422706]
[1717738418396,1.19423446,3819.4,3819.3,2.88422706]
[1717738422863,3.49903446,3819.4,3819.3,2.33620821]
[1717738423059,3.88027591,3819.4,3819.3,2.33620821]
[1717738423288,4.44624013,3819.4,3819.3,2.33620821]
[1717738423600,4.99624013,3819.4,3819.3,2.33620821]
[1717738424364,4.99624013,3819.4,3819.3,0.06130048]
[1717738424613,4.99624013,3819.4,3819.3,2.33636466]
[1717738424905,4.99624013,3819.4,3819.3,2.3364793]
[1717738426824,4.43027591,3819.4,3819.3,2.3364793]
[1717738426979,4.99628576,3819.4,3819.3,2.3364793]
[1717738428375,4.99628576,3819.4,3819.3,0.97144079]
[1717738428614,4.99628576,3819.4,3819.3,2.33652312]
[1717738431665,4.99628576,3819.4,3819.3,2.33648949]
[1717738432877,4.99628576,3819.4,3819.3,2.3365039]
[1717738433939,4.99628576,3819.4,3819.3,2.33650585]
[1717738435576,4.99628576,3819.4,3819.3,2.8845247]
[1717738436075,4.61504431,3819.4,3819.3,2.8845247]
[1717738436942,2.61828,3819.3,3819.1,0.82038772]
[1717738437144,2.61843,3819.1,3818.8,0.82038772]
[1717738437476,2.61882,3818.5,3818.3,0.82038772]
[1717738437681,0.784,3818.4,3818.3,0.82038772]
[1717738438166,0.784,3818.4,3818.1,1.0937779]
[1717738438167,0.784,3818.4,3818.1,0.82038772]
[1717738439268,0.784,3818.4,3817.9,1.0937779]
[1717738439269,0.784,3818.4,3818.0,0.82038772]
[1717738440083,0.784,3818.4,3818.1,0.82038772]
[1717738440442,2.61896,3818.3,3818.1,0.82038772]
[1717738443370,2.61896,3818.3,3818.0,0.82038772]
[1717738444782,2.61896,3818.3,3818.2,0.0556544]
[1717738444963,2.61896,3818.3,3818.2,9e-06]
[1717738445162,2.61896,3818.3,3818.2,0.0556544]
[1717738447104,2.61896,3818.3,3818.2,1.42102983]
[1717738447247,2.07281113,3818.3,3818.2,1.96889296]
[1717738447447,2.85681113,3818.3,3818.2,1.96889296]
[1717738447883,2.85681113,3818.3,3818.2,1.42102983]
[1717738456905,2.85681113,3818.3,3818.2,0.0556544]
[1717738457068,2.85681113,3818.3,3818.2,2.33125701]
[1717738459373,2.85681113,3818.3,3818.2,2.33126713]
[1717738463616,2.07281113,3818.3,3818.2,2.33126713]
[1717738463799,2.85681113,3818.3,3818.2,2.33126713]
[1717738465088,3.37854159,3818.3,3818.2,2.33126713]
[1717738465405,2.59454159,3818.3,3818.2,0.96589949]
[1717738465716,3.37854159,3818.3,3818.2,0.96589949]
[1717738467193,3.94471192,3818.3,3818.2,0.96589949]
[1717738467491,3.37854159,3818.3,3818.2,0.96589949]
[1717738467921,3.94471192,3818.3,3818.2,0.96589949]
[1717738468212,3.37854159,3818.3,3818.2,0.96589949]
[1717738469600,3.37854159,3818.3,3818.2,0.0556544]
[1717738469791,2.59454159,3818.3,3818.2,0.96597419]
[1717738469993,3.37854159,3818.3,3818.2,2.33139893]
[1717738470824,3.37854159,3818.3,3818.2,0.96597419]
[1717738471827,3.37854159,3818.3,3818.2,0.0556544]
[1717738472597,3.37854159,3818.3,3818.2,0.96597247]
[1717738472910,3.92854159,3818.3,3818.2,0.0556544]
[1717738474828,3.92854159,3818.3,3818.2,0.96598726]
[1717738475029,3.14454159,3818.3,3818.2,0.96598726]
[1717738475186,3.92854159,3818.3,3818.2,0.96598726]
[1717738477032,3.92854159,3818.3,3818.2,2.33147759]
[1717738477590,2.62281113,3818.3,3818.2,2.33147759]
[1717738477808,2.07281113,3818.3,3818.2,0.0556544]
[1717738478023,2.07281113,3818.3,3818.2,2.87925008]
[1717738478434,2.85681113,3818.3,3818.2,7.3329606]
[1717738478913,2.85681113,3818.3,3818.2,4.69208695]
[1717738479092,2.85681113,3818.3,3818.2,7.33296912]
[1717738479292,0.56616915,3818.5,3818.2,8.17564382]
[1717738479491,0.784,3818.4,3818.3,4.096227]
[1717738479812,0.40842635,3818.4,3818.3,5.46726646]
[1717738480018,0.40842635,3818.4,3818.3,5.52327369]
[1717738480193,0.40842635,3818.4,3818.3,6.62346938]
[1717738480619,0.784,3818.5,3818.4,2.3607]
[1717738480818,7.37,3818.9,3818.4,7.82796646]
[1717738480992,7.37,3818.9,3818.7,0.82248727]
[1717738481330,2.61842,3819.1,3818.6,1.09664969]
[1717738481331,2.61842,3819.1,3818.8,4.91842526]
[1717738481549,2.61842,3819.1,3819.0,0.54839327]
[1717738481735,3.40242,3819.1,3819.0,2.82412582]
[1717738481970,6.40242,3819.1,3819.0,2.88006538]
[1717738482124,6.96846044,3819.1,3819.0,2.88006538]
[1717738482933,6.96846044,3819.1,3819.0,2.33167211]
[1717738482934,10.03100648,3819.1,3819.0,2.33167211]
[1717738483320,10.03100648,3819.1,3819.0,0.05593956]
[1717738483523,9.24700648,3819.1,3819.0,0.05593956]
[1717738483845,10.03100648,3819.1,3819.0,0.96590032]
[1717738484042,1.35004044,3819.1,3819.0,0.96590032]
[1717738484213,1.35004044,3819.1,3819.0,2.879548]
[1717738484396,0.784,3819.1,3819.0,4.15122928]
[1717738485521,0.784,3819.1,3819.0,4.97337403]
[1717738487242,0.4129381,3819.1,3819.0,4.97337403]
[1717738487453,0.784,3819.1,3819.0,4.97337403]
[1717738489059,0.784,3819.1,3819.0,2.33115473]
[1717738489259,0.784,3819.1,3819.0,2.87890476]
[1717738489856,0.784,3819.1,3819.0,2.33115473]
[1717738490048,0.784,3819.1,3819.0,4.97332862]
[1717738490251,0.784,3819.1,3819.0,3.15329948]
[1717738490565,9.98814,3819.5,3819.0,3.8110244]
[1717738490749,0.784,3819.1,3819.0,0.71345563]
[1717738490956,0.784,3819.1,3819.0,4.80842395]
[1717738491170,9.98814,3819.5,3819.0,4.80842395]
[1717738491461,9.98814,3819.5,3819.3,0.54745288]
[1717738491668,9.98814,3819.5,3819.4,2.2749824]
[1717738491837,10.77214,3819.5,3819.4,2.33043957]
[1717738492165,10.77214,3819.5,3819.4,2.87789245]
[1717738492373,10.77214,3819.5,3819.4,2.33043957]
[1717738494190,10.77214,3819.5,3819.4,2.33030903]
[1717738494826,10.77214,3819.5,3819.4,0.96539791]
[1717738495063,10.77214,3819.5,3819.4,0.90994074]
[1717738495248,10.77214,3819.5,3819.4,0.9099681]
[1717738495572,10.77214,3819.5,3819.4,0.05545717]
[1717738495782,10.77214,3819.5,3819.4,0.90998453]
[1717738495964,10.77214,3819.5,3819.4,0.05540424]
[1717738496147,10.77214,3819.5,3819.1,0.54745288]
[1717738496468,0.784,3819.2,3819.1,0.54745288]
[1717738496652,0.784,3819.2,3819.1,2.82244024]
[1717738496976,0.784,3819.2,3819.1,2.27498736]
[1717738498477,0.784,3819.2,3819.1,2.82244024]
[1717738498830,9.98814,3819.5,3819.1,2.82244024]
[1717738499026,0.784,3819.2,3819.1,0.54745288]
[1717738499229,0.784,3819.2,3819.1,3.20362743]
[1717738499431,9.98814,3819.5,3819.1,3.20362743]
[1717738499670,9.98814,3819.5,3819.2,2.27493127]
[1717738499871,9.98814,3819.5,3819.3,2.27493127]
[1717738500067,0.784,3819.4,3819.3,2.27493127]
[1717738500267,0.784,3819.4,3819.3,2.27492385]
[1717738502340,0.784,3819.4,3819.3,2.27491935]
[1717738502975,0.784,3819.4,3819.3,0.9653364]
[1717738503749,0.784,3819.4,3819.3,0.05536686]
[1717738503963,0.784,3819.4,3819.0,0.54745288]
[1717738504167,0.784,3819.1,3819.0,0.54745288]
[1717738504369,0.784,3819.1,3819.0,2.82241448]
[1717738504640,9.98814,3819.5,3819.0,3.54081889]
[1717738504798,7.37,3819.5,3819.3,0.54680759]
[1717738504960,7.37,3819.5,3819.4,4.5249616]
[1717738505292,8.154,3819.5,3819.4,5.07176919]
[1717738505863,7.37,3819.5,3819.4,4.5249616]
[1717738506074,8.154,3819.5,3819.4,4.5249616]
[1717738506858,7.37,3819.5,3819.4,5.11425651]
[1717738507092,7.37,3819.5,3819.4,5.6610641]
[1717738507253,7.37,3819.5,3819.4,6.93401612]
[1717738507599,5.914454,3819.5,3819.4,6.93401612]
[1717738508981,1.57197677,3820.7,3819.7,2.618]
[1717738509162,1.57197677,3820.7,3819.5,2.4328]
[1717738509163,0.784,3820.5,3820.1,2.4328]
[1717738509472,0.784,3820.5,3820.2,2.2749616]
[1717738509677,0.784,3820.5,3820.1,2.4328]
[1717738509867,1.57197677,3820.9,3820.2,2.27420408]